Cogmind - Beta 11.1 @@@ ROGUE MODE // 2022.09.03 @ 05:21:35 Player: woegarden Result: Destroyed by Y-54 Guardian with Flak Gun Performance ------------- Evolutions (3) 1500 Regions Visited (12) 2400 Robots Destroyed (90) 450 Value Destroyed (2839) 2839 Prototype IDs (27) 540 Alien Tech Used (0) 0 Bonus (700) 700 TOTAL SCORE: 8429 Bonus ------- Entered Garrisons 400 Aligned with FarCom 300 Cogmind --------- Core Integrity 0/700 Matter 45/300 Energy 99/100 System Corruption 8% Temperature Cool (12) Movement Rolling (100) Location -7/Factory Parts ------- > --- POWER (2) -------- (None) > --- PROPULSION (4) --- Compact Wheel > --- UTILITY (5) ------ Hacking Suite Hacking Suite > --- WEAPON (2) ------- (None) > --- INVENTORY (5) ---- Cloak of Protection System Shield System Restoration Module System Restoration Module System Restoration Module Peak State ------------ > --- POWER ------------ Micro Nuclear Core > --- PROPULSION ------- Armored Huge Wheel Xenon Bombardment Thruster > --- UTILITY ---------- Advanced Weight Redist. System Advanced ECM Suite Hacking Suite Hacking Suite System Shield > --- WEAPON ----------- Shock Rifle Remote Datajack > --- INVENTORY -------- Cloak of Protection System Restoration Module System Restoration Module System Restoration Module [Rating: 41] Favorites ----------- Power Light Nuclear Core Engine Improved Ion Engine Power Core Light Nuclear Core Propulsion Light Treads Treads Light Treads Leg Aluminum Leg Wheel Armored Wheel Flight Unit Flight Unit Utility Improved Terrain Scanner Device Improved Terrain Scanner Storage High-capacity Storage Unit Processor Targeting Computer Hackware Hacking Suite Weapon Advanced Beam Cannon Energy Gun Beam Rifle Energy Cannon Advanced Beam Cannon Ballistic Gun Heavy Assault Rifle Ballistic Cannon Light Cannon Launcher Rocket Launcher Special Weapon Remote Datajack Build | -11 -10 -9 -9 -9 -8 -8 -8 -7 -7 -7 -7 -7 ------- Run | Scr Mat Mat Min Exi Min Mat Gar Fac Was Fac Gar Fac Slots Evolved 6 | . . 2 . . . 2 . 2 . . . . Power 1 | . . . . . . . . 1 . . . . Propulsion 2 | . . . . . . 2 . . . . . . Utility 3 | . . 2 . . . . . 1 . . . . Weapon . | . . . . . . . . . . . . . Parts Attached 127 | . 16 10 13 3 3 17 30 14 1 15 . 5 Power 12 | . 1 . 1 . . 1 3 4 . 1 . 1 Engine 6 | . . . . . . 1 2 2 . . . 1 Core 6 | . 1 . 1 . . . 1 2 . 1 . . Reactor . | . . . . . . . . . . . . . Propulsion 53 | . 5 2 6 1 2 13 13 4 1 4 . 2 Treads 17 | . 4 2 2 . . 5 4 . . . . . Leg 10 | . 1 . . . 1 3 5 . . . . . Wheel 20 | . . . 4 1 1 5 2 4 1 1 . 1 Hover . | . . . . . . . . . . . . . Flight 6 | . . . . . . . 2 . . 3 . 1 Utility 32 | . 4 6 2 2 1 1 7 4 . 5 . . Device 19 | . 1 5 2 1 1 1 3 3 . 2 . . Storage 5 | . 3 . . 1 . . . 1 . . . . Processor 5 | . . 1 . . . . 4 . . . . . Hackware 3 | . . . . . . . . . . 3 . . Protection . | . . . . . . . . . . . . . Artifact . | . . . . . . . . . . . . . Weapon 30 | . 6 2 4 . . 2 7 2 . 5 . 2 Energy Gun 4 | . . . . . . 1 2 . . 1 . . Energy Cannon 3 | . . 2 1 . . . . . . . . . Ballistic Gun 5 | . . . 1 . . 1 2 . . 1 . . Ballistic Cannon 10 | . 6 . . . . . . 2 . 2 . . Launcher 6 | . . . 1 . . . 3 . . . . 2 Special Weapon 2 | . . . 1 . . . . . . 1 . . Impact Weapon . | . . . . . . . . . . . . . Slashing Weapon . | . . . . . . . . . . . . . Piercing Weapon . | . . . . . . . . . . . . . Special Melee Weapon . | . . . . . . . . . . . . . Unidentified Prototypes 2 | . . 1 . . . . . . . . . 1 Corrupted Parts 1 | . . . . . . . 1 . . . . . System Corruption 4 | . . . . . . . 4 . . . . . Parts Lost 45 | . 3 5 4 . . 3 14 . 5 . 1 10 Power 6 | . . . 1 . . . 2 . 1 . . 2 Propulsion 17 | . . 2 1 . . 3 7 . 1 . . 3 Utility 10 | . 1 3 1 . . . 1 . 2 . . 2 Weapon 12 | . 2 . 1 . . . 4 . 1 . 1 3 Highest Loss Streak 11 | . 2 3 3 . . 2 11 . 4 . 1 8 To Critical Strikes . | . . . . . . . . . . . . . Average Slot Usage (%) 89 | . 95 97 91 93 88 88 83 95 66 56 73 35 Engine 1 | . 4 . . . . 7 6 1 5 . . 2 Core 8 | . 9 11 10 11 11 1 1 13 6 1 7 1 Treads 8 | . 20 21 18 . . 9 12 . . . . . Leg 2 | . 7 . . . . 2 9 6 . . . . Wheel 12 | . . . 2 22 22 22 3 13 15 6 7 3 Device 15 | . 6 20 15 15 21 18 15 22 13 14 15 3 Storage 10 | . 20 11 11 11 11 9 6 . 6 . . . Processor 7 | . . 11 11 11 . . 4 15 13 5 . . Hackware 1 | . . . . . . . . . . 14 23 15 Energy Gun 1 | . 4 . . . . . 7 5 . 1 4 . Energy Cannon 6 | . . 11 9 11 11 8 . . . . . . Ballistic Gun 6 | . . . 9 11 11 9 8 5 . . . . Ballistic Cannon 4 | . 20 11 . . . . . 4 3 7 . . Naked Turns . | . . . . . . . . . . . . . Heaviest Build 223 | 13 52 54 54 220 221 223 214 32 32 21 15 12 Greatest Support 89 | 20 40 40 40 28 28 57 89 61 61 37 37 37 Greatest Overweight (x) 74 | . 1 2 4 9 7 74 17 . . 2 . 3 Average Overweight (x) 2 | . . 1 1 4 7 6 1 . . . . . Largest Inventory Capacity 35 | . 20 20 20 35 35 35 35 5 5 5 5 5 Average Capacity 20 | . 15 20 20 24 35 35 26 5 5 5 5 5 Most Carried 30 | . 12 20 20 23 22 30 27 5 5 5 4 5 Average Carried 15 | . 8 15 17 20 21 24 18 2 5 4 4 4 Final Capacity 35 | 8 20 20 20 35 35 35 5 5 5 5 5 5 Final Carried 27 | 6 12 18 20 22 22 27 4 5 5 4 4 5 Class Distribution -------------------- 30% | Scavenger-Mutant 25% | Mutant 15% | Hauler-Skirmisher 12% | Hauler-Mutant 7% | Hacker-Mutant 4% | Scavenger-Skirmisher Dominant Class ---------------- Mutant | -10/Materials Mutant | -9/Materials Scavenger-Mutant | -9/Mines Scavenger-Mutant | -9/Exiles Hauler-Skirmisher | -8/Mines Hauler-Skirmisher | -8/Materials Hauler-Skirmisher | -8/Garrison Scavenger-Skirmisher | -7/Factory Mutant | -7/Waste Hacker-Mutant | -7/Factory Hacker-Mutant | -7/Garrison Hacker-Mutant | -7/Factory Resources | -11 -10 -9 -9 -9 -8 -8 -8 -7 -7 -7 -7 -7 ----------- Run | Scr Mat Mat Min Exi Min Mat Gar Fac Was Fac Gar Fac Matter Collected 2175 | 200 550 272 265 12 103 157 301 240 . 25 50 . Remotely . | . . . . . . . . . . . . . Salvage Created 2717 | . 642 793 323 . 145 311 372 26 . 64 . 41 Parts 160 | . 35 46 27 . 5 15 20 . . 7 . 5 Haulers Intercepted 5 | . 2 2 . . . 1 . . . . . . Recyclers Shooed 7 | . 6 . . . 1 . . . . . . . Parts Field Recycled . | . . . . . . . . . . . . . Retrieved Matter . | . . . . . . . . . . . . . Parts Self-Destructed . | . . . . . . . . . . . . . Prevented . | . . . . . . . . . . . . . Kills | -11 -10 -9 -9 -9 -8 -8 -8 -7 -7 -7 -7 -7 ------- Run | Scr Mat Mat Min Exi Min Mat Gar Fac Was Fac Gar Fac Combat Hostiles Destroyed 58 | . 14 10 7 . 3 4 15 1 . 1 . 3 Guns 14 | . 1 . 2 . 2 1 8 . . . . . Cannons 33 | . 12 10 5 . 1 3 . 1 . 1 . . AOE 11 | . 1 . . . . . 7 . . . . 3 Classes Destroyed 15 | . 10 2 1 . . . 1 . . 1 . . Worker 8 | . 7 1 . . . . . . . . . . Builder 4 | . 1 2 1 . . . . . . . . . Tunneler 5 | . 1 . 3 . . . . . . 1 . . Hauler 5 | . 2 2 . . . 1 . . . . . . Recycler 5 | . 2 2 . . . 1 . . . . . . Mechanic 2 | . 1 1 . . . . . . . . . . Operator 1 | . 1 . . . . . . . . . . . Watcher 2 | . 2 . . . . . . . . . . . Swarmer 11 | . 3 . . . . . 5 . . . . 3 Grunt 35 | . 11 7 6 . 2 3 6 . . . . . Brawler 1 | . . 1 . . . . . . . . . . Duelist 2 | . . . 1 . 1 . . . . . . . Sentry 6 | . . 2 . . . 1 2 1 . . . . Specialist 2 | . . . . . . . 2 . . . . . Programmer 1 | . . . . . . . . . . 1 . . Best Kill Streak 9 | . 7 5 3 . 3 2 9 1 . 2 . 3 Combat Bots Only 9 | . 6 4 3 . 3 1 9 1 . 1 . 3 Max Kills in Single Turn 3 | . 2 1 1 . 1 1 3 1 . 1 . 3 Gunslinging . | . . . . . . . . . . . . . Exploded 3 | . 1 . . . . . 3 . . . . 3 Melee . | . . . . . . . . . . . . . Uniques/NPCs Destroyed . | . . . . . . . . . . . . . Combat | -11 -10 -9 -9 -9 -8 -8 -8 -7 -7 -7 -7 -7 -------- Run | Scr Mat Mat Min Exi Min Mat Gar Fac Was Fac Gar Fac Damage Taken 6562 | . 873 580 428 . 117 536 2266 207 272 . 268 1015 Core 1585 | . 156 64 158 . 36 55 412 26 157 . 62 459 Absorbed by Shields 8 | . . . . . . . . . . . 8 . Core Remaining (%) 46 | 100 37 . . . 35 . 15 . . . . . Volleys Fired 239 | . 95 29 34 . 7 24 37 7 2 2 . 2 Largest 2 | . 2 2 2 . 2 2 2 2 2 2 . 1 Hottest 103 | . 80 103 103 . 91 91 98 96 96 96 . 36 Shots Fired 434 | . 171 58 56 . 14 48 63 14 4 4 . 2 Gun 162 | . 50 . 18 . 7 25 56 6 . . . . Cannon 253 | . 121 58 28 . 7 23 . 8 4 4 . . Launcher 16 | . . . 8 . . . 7 . . . . 1 Special 3 | . . . 2 . . . . . . . . 1 Kinetic 249 | . 121 29 23 . 7 24 26 11 4 4 . . Thermal 146 | . 39 18 25 . 7 24 30 3 . . . . Explosive 13 | . . . 8 . . . 5 . . . . . Electromagnetic 25 | . 11 11 . . . . 2 . . . . 1 Robot Hit Streak 17 | . 17 9 6 . 9 9 7 7 3 1 . 2 Robot Miss Streak 4 | . 4 2 3 . 1 3 3 1 1 1 . 1 Penetration Max . | . . . . . . . . . . . . . Secondary Targets 1 | . . . . . . . 1 . . . . . Max Gunslinging Chain 1 | . . . . . . . 1 . . . . . Shots Hit Robots 268 | . 103 34 33 . 11 28 43 10 3 2 . 1 Core Hits 125 | . 36 20 15 . 6 11 30 2 . 2 . 3 Critical Kills 1 | . . . . . 1 . . . . . . . Critical Parts Destroyed . | . . . . . . . . . . . . . Critical Strikes 7 | . 6 . . . 1 . . . . . . . Destroy 1 | . . . . . 1 . . . . . . . Blast 5 | . 5 . . . . . . . . . . . Corrupt 1 | . 1 . . . . . . . . . . . Melee Attacks . | . . . . . . . . . . . . . Impact . | . . . . . . . . . . . . . Slashing . | . . . . . . . . . . . . . Piercing . | . . . . . . . . . . . . . Sneak Attacks . | . . . . . . . . . . . . . Combat Hostiles . | . . . . . . . . . . . . . Follow-up Attacks . | . . . . . . . . . . . . . Damage Inflicted 6302 | . 2054 694 785 . 227 548 1274 244 83 59 . 334 Guns 1475 | . 351 . 153 . 94 218 611 48 . . . . Cannons 3288 | . 1407 690 399 . 124 330 . 196 83 59 . . Explosions 1486 | . 256 . 233 . . . 663 . . . . 334 Melee . | . . . . . . . . . . . . . Ramming 53 | . 40 4 . . 9 . . . . . . . Kinetic 2781 | . 1407 208 202 . 94 218 304 206 83 59 . . Thermal 1939 | . 505 285 350 . 124 330 307 38 . . . . Explosive 1177 | . . . 233 . . . 629 . . . . 315 Electromagnetic 352 | . 102 197 . . . . 34 . . . . 19 Impact . | . . . . . . . . . . . . . Slashing . | . . . . . . . . . . . . . Piercing . | . . . . . . . . . . . . . Highest Corruption 8 | . . . . . . . 4 . 7 7 7 8 Average Corruption 6 | . . . . . . . 4 . 7 7 7 7 Corruption Purged . | . . . . . . . . . . . . . Corruption Blocked . | . . . . . . . . . . . . . Effects 22 | . . . . . . . 1 . 2 8 4 7 Message Errors 8 | . . . . . . . 1 . 1 2 1 3 Matter Fused 3 | . . . . . . . . . . 1 . 2 Heat Flow Errors 2 | . . . . . . . . . . 1 1 . Energy Discharges 3 | . . . . . . . . . 1 2 . . Parts Rejected 1 | . . . . . . . . . . . . 1 Data Loss (minor) 3 | . . . . . . . . . . 2 . 1 Data Loss (major) 2 | . . . . . . . . . . . 2 . Overload Shots . | . . . . . . . . . . . . . Overflow Damage 91 | . 17 . 1 . . . 8 . . . . 65 Projectiles 16 | . 15 . 1 . . . . . . . . . Explosions 73 | . . . . . . . 8 . . . . 65 Melee 2 | . 2 . . . . . . . . . . . Knockbacks 20 | . 18 2 . . . . . . . . . . Impact . | . . . . . . . . . . . . . Kinetic 16 | . 14 2 . . . . . . . . . . Secondary 4 | . 4 . . . . . . . . . . . Self-Inflicted Damage 550 | . 96 . 58 . 4 . 278 . . . . 114 Shots 14 | . 3 . 2 . . . 6 . . . . 3 Rammed 5 | . 2 2 . . 1 . . . . . . . Targets Rammed 8 | . 5 2 . . 1 . . . . . . . Kicked 3 | . 3 . . . . . . . . . . . Crushed . | . . . . . . . . . . . . . Highest Temperature 304 | . 285 270 304 . 162 117 260 192 72 95 216 14 Average Temperature 77 | . 76 76 139 . 71 35 63 78 38 61 120 14 Received Heat Transfer 2109 | . 387 252 138 . 27 333 684 60 . . 90 138 Effects 3 | . 3 . . . . . . . . . . . Interference 3 | . 3 . . . . . . . . . . . Siege Activations . | . . . . . . . . . . . . . Robots Corrupted 1 | . 1 . . . . . . . . . . . Combat Hostiles . | . . . . . . . . . . . . . Parts Fried . | . . . . . . . . . . . . . Impact Corruptions 1 | . 1 . . . . . . . . . . . Robots Melted . | . . . . . . . . . . . . . Combat Hostiles . | . . . . . . . . . . . . . Parts Melted 4 | . . 2 1 . . . 1 . . . . . Heat Transferred 3637 | . 825 518 629 . 222 592 777 74 . . . . Parts Sabotaged . | . . . . . . . . . . . . . Parts Stolen . | . . . . . . . . . . . . . Parts Stripped . | . . . . . . . . . . . . . Power Chain Reactions 4 | . 2 . . . . . . . . . . 2 Missiles Intercepted . | . . . . . . . . . . . . . Alert | -11 -10 -9 -9 -9 -8 -8 -8 -7 -7 -7 -7 -7 ------- Run | Scr Mat Mat Min Exi Min Mat Gar Fac Was Fac Gar Fac Peak Influence 451 | . 304 213 185 . 85 196 451 292 32 37 113 215 Initial 236 | . . 72 76 . . 33 . 236 32 . 38 53 Average 131 | . 188 116 114 . 25 76 187 218 20 7 80 144 Maximum Alert Level 2 | . 1 1 . . . . 2 1 . . . 1 Low Security (%) 73 | . 52 89 100 . 100 100 58 17 100 100 100 59 Level 1 26 | . 47 10 . . . . 40 82 . . . 40 Level 2 . | . . . . . . . 1 . . . . . Level 3 . | . . . . . . . . . . . . . Level 4 . | . . . . . . . . . . . . . Level 5 . | . . . . . . . . . . . . . High Security . | . . . . . . . . . . . . . Max Security . | . . . . . . . . . . . . . Squads Dispatched 9 | . 2 3 1 . . 1 . 1 . 1 . . Investigation 3 | . 1 2 . . . . . . . . . . Extermination 1 | . . . . . . . . . . 1 . . Reinforcement 4 | . 1 1 1 . . 1 . . . . . . Assault . | . . . . . . . . . . . . . Garrison 1 | . . . . . . . . 1 . . . . Intercept . | . . . . . . . . . . . . . Searches Triggered . | . . . . . . . . . . . . . Construction Impeded 1 | . . . 1 . . . . . . . . . Haulers Reinforced . | . . . . . . . . . . . . . Active Scanning Responses . | . . . . . . . . . . . . . Cargo Convoy Interrupts . | . . . . . . . . . . . . . Stealth | -11 -10 -9 -9 -9 -8 -8 -8 -7 -7 -7 -7 -7 --------- Run | Scr Mat Mat Min Exi Min Mat Gar Fac Was Fac Gar Fac Distress Signals 6 | . 3 2 . . . 1 . . . . . . Communications Jammed . | . . . . . . . . . . . . . Distress Signals . | . . . . . . . . . . . . . Times Spotted 99 | . 27 14 8 . 3 9 15 1 6 1 8 7 Peak Tracking Total 9 | . 4 4 3 . 3 4 9 1 6 1 6 6 Tactical Retreats 5 | . . . 1 . . 1 . . . . 1 2 Traps | -11 -10 -9 -9 -9 -8 -8 -8 -7 -7 -7 -7 -7 ------- Run | Scr Mat Mat Min Exi Min Mat Gar Fac Was Fac Gar Fac Traps Triggered 5 | . 1 1 . . . . 1 1 . . 1 . Indirectly 1 | . . . . . . . 1 . . . . . Trap Hack Attempts . | . . . . . . . . . . . . . Triggered . | . . . . . . . . . . . . . Disarmed . | . . . . . . . . . . . . . Reprogrammed . | . . . . . . . . . . . . . Reused . | . . . . . . . . . . . . . Traps Extracted . | . . . . . . . . . . . . . Installed . | . . . . . . . . . . . . . Triggered 1 | . 1 . . . . . . . . . . . Machines | -11 -10 -9 -9 -9 -8 -8 -8 -7 -7 -7 -7 -7 ---------- Run | Scr Mat Mat Min Exi Min Mat Gar Fac Was Fac Gar Fac Machines Disabled 16 | . 6 1 . . . 1 3 . . . . 5 Max in Single Turn 3 | . 3 1 . . . 1 2 . . . . 3 Garrison Relay 1 | . . . . . . . 1 . . . . . Phase Generator 1 | . . . . . . . 1 . . . . . Machines Sabotaged . | . . . . . . . . . . . . . Garrisons Compromised . | . . . . . . . . . . . . . Overloaded Fab Kills . | . . . . . . . . . . . . . Hacking | -11 -10 -9 -9 -9 -8 -8 -8 -7 -7 -7 -7 -7 --------- Run | Scr Mat Mat Min Exi Min Mat Gar Fac Was Fac Gar Fac Machines Accessed 7 | . 1 2 . 1 . 1 . 1 . 1 . . Terminals 3 | . 1 1 . . . . . 1 . . . . Fabricators . | . . . . . . . . . . . . . Repair Stations . | . . . . . . . . . . . . . Recycling Units 1 | . . 1 . . . . . . . . . . Scanalyzers . | . . . . . . . . . . . . . Garrison Access 2 | . . . . . . 1 . . . 1 . . Total Hacks 14 | . 2 5 . 1 . 1 . 3 . 2 . . Successful 9 | . . 4 . 1 . 1 . 2 . 1 . . Failed 5 | . 2 1 . . . . . 1 . 1 . . Catastrophic 1 | . 1 . . . . . . . . . . . Database Lockouts . | . . . . . . . . . . . . . Manual 4 | . . 3 . 1 . . . . . . . . Terminals 9 | . 2 4 . . . . . 3 . . . . Fabricators . | . . . . . . . . . . . . . Repair Stations . | . . . . . . . . . . . . . Recycling Units 1 | . . 1 . . . . . . . . . . Scanalyzers . | . . . . . . . . . . . . . Garrison Access 3 | . . . . . . 1 . . . 2 . . Terminal Hacks 6 | . . 3 . 1 . . . 2 . . . . Part Schematic 1 | . . . . . . . . 1 . . . . Prototype ID Bank 1 | . . 1 . . . . . . . . . . Branch Access Points 1 | . . 1 . . . . . . . . . . Emergency Access Points 1 | . . . . . . . . 1 . . . . Alert Level 1 | . . 1 . . . . . . . . . . EX-Prototype ID Bank 1 | . . . . 1 . . . . . . . . Fabricator Hacks . | . . . . . . . . . . . . . Repair Station Hacks . | . . . . . . . . . . . . . Recycling Unit Hacks . | . . . . . . . . . . . . . Scanalyzer . | . . . . . . . . . . . . . Garrison Access Hacks 2 | . . . . . . 1 . . . 1 . . Unlock Access 2 | . . . . . . 1 . . . 1 . . Unauthorized Hacks 1 | . . 1 . . . . . . . . . . Terminals . | . . . . . . . . . . . . . Fabricators . | . . . . . . . . . . . . . Repair Stations . | . . . . . . . . . . . . . Recycling Units 1 | . . 1 . . . . . . . . . . Reject 1 | . . 1 . . . . . . . . . . Scanalyzers . | . . . . . . . . . . . . . Garrison Access . | . . . . . . . . . . . . . Data Cores Recovered . | . . . . . . . . . . . . . Used . | . . . . . . . . . . . . . Hacking Detections 4 | . 1 2 . . . . . . . 1 . . Full Trace Events 2 | . 1 1 . . . . . . . . . . Feedback Events . | . . . . . . . . . . . . . Feedback Blocked . | . . . . . . . . . . . . . Robot Schematics Acquired . | . . . . . . . . . . . . . Robots Built . | . . . . . . . . . . . . . Authchips . | . . . . . . . . . . . . . Time . | . . . . . . . . . . . . . Total Robot Build Rating . | . . . . . . . . . . . . . Part Schematics Acquired 1 | . . . . . . . . 1 . . . . Parts Built . | . . . . . . . . . . . . . Authchips . | . . . . . . . . . . . . . Time . | . . . . . . . . . . . . . Total Part Build Rating . | . . . . . . . . . . . . . Parts Repaired . | . . . . . . . . . . . . . Time . | . . . . . . . . . . . . . Parts Recycled . | . . . . . . . . . . . . . Recycled Matter . | . . . . . . . . . . . . . Retrieved Matter . | . . . . . . . . . . . . . Retrieved Components . | . . . . . . . . . . . . . Parts Scanalyzed . | . . . . . . . . . . . . . Part Schematics Acquired . | . . . . . . . . . . . . . Parts Damaged . | . . . . . . . . . . . . . Bothacking | -11 -10 -9 -9 -9 -8 -8 -8 -7 -7 -7 -7 -7 ------------ Run | Scr Mat Mat Min Exi Min Mat Gar Fac Was Fac Gar Fac Used RIF Installer . | . . . . . . . . . . . . . Robots Hacked 1 | . . . . . . . . . . . . 1 Non-combat . | . . . . . . . . . . . . . Combat 1 | . . . . . . . . . . . . 1 Robot Hacks Applied 1 | . . . . . . . . . . . . 1 parse_system 1 | . . . . . . . . . . . . 1 Relay Couplers Released 3 | . . . . . . . 3 . . . . . Machine Destruction 3 | . . . . . . . 3 . . . . . Fabnet Peak Effective % . | . . . . . . . . . . . . . Robots Rewired . | . . . . . . . . . . . . . Allies Hacked . | . . . . . . . . . . . . . Hacks Repelled . | . . . . . . . . . . . . . Allies | -11 -10 -9 -9 -9 -8 -8 -8 -7 -7 -7 -7 -7 -------- Run | Scr Mat Mat Min Exi Min Mat Gar Fac Was Fac Gar Fac Total Allies . | . . . . . . . . . . . . . Largest Group . | . . . . . . . . . . . . . Highest-Rated Group . | . . . . . . . . . . . . . Highest-Rated Ally . | . . . . . . . . . . . . . Total Orders . | . . . . . . . . . . . . . Ally Attacks . | . . . . . . . . . . . . . Total Damage . | . . . . . . . . . . . . . Kills . | . . . . . . . . . . . . . Allies Corrupted . | . . . . . . . . . . . . . Allies Melted . | . . . . . . . . . . . . . Intel | -11 -10 -9 -9 -9 -8 -8 -8 -7 -7 -7 -7 -7 ------- Run | Scr Mat Mat Min Exi Min Mat Gar Fac Was Fac Gar Fac Robot Analysis Total . | . . . . . . . . . . . . . Derelict Logs Recovered 1 | . . . 1 . . . . . . . . . Drone Launches . | . . . . . . . . . . . . . Drone Recoveries . | . . . . . . . . . . . . . Exploration | -11 -10 -9 -9 -9 -8 -8 -8 -7 -7 -7 -7 -7 ------------- Run | Scr Mat Mat Min Exi Min Mat Gar Fac Was Fac Gar Fac Turns Passed 7942 | . 1233 679 616 2663 341 608 617 486 98 343 87 171 Spaces Moved 3730 | 1 498 220 232 936 157 213 268 483 95 290 132 205 Core 168 | . . . . . . 3 6 . . 120 . 39 Treads 798 | . 345 220 173 . . 1 59 . . . . . Legs 266 | 1 153 . . . . . 19 93 . . . . Wheels 1940 | . . . 59 936 157 209 14 283 95 92 34 61 Hover . | . . . . . . . . . . . . . Flight 558 | . . . . . . . 170 107 . 78 98 105 Fastest Speed 35 | 120 120 240 110 115 200 132 47 57 93 40 50 35 Average Speed 152 | 120 184 241 209 152 200 231 160 89 95 105 62 77 Slowest Speed 3750 | 120 240 320 240 220 200 3750 900 125 100 150 100 200 Overloaded Moves . | . . . . . . . . . . . . . Propulsion Burnouts . | . . . . . . . . . . . . . Robots Hopped 1 | . . . . . . . . . . . 1 . Cave-ins Triggered . | . . . . . . . . . . . . . Exploration Rate (%) 36 | 2 67 21 41 93 39 20 48 12 70 6 42 8 Regions Visited 12 Branch Regions 3 Pre-discovered Areas . | . . . . . . . . . . . . . Known Exits Taken 3 | . . 1 . . . 1 . . . 1 . . Unknown Exits Taken 5 | 1 1 . 1 1 1 . . . . . . . Scrap Searched 2 | . . . 2 . . . . . . . . . Spaces Dug . | . . . . . . . . . . . . . Terrain Destroyed 179 | . 28 . 44 . . . 83 . . 2 . 22 Melee . | . . . . . . . . . . . . . Projectile 3 | . . . 1 . . . . . . 2 . . AOE 176 | . 28 . 43 . . . 83 . . . . 22 Terrain Rammed . | . . . . . . . . . . . . . Walls Destroyed . | . . . . . . . . . . . . . Machines Disabled . | . . . . . . . . . . . . . Actions | -11 -10 -9 -9 -9 -8 -8 -8 -7 -7 -7 -7 -7 --------- Run | Scr Mat Mat Min Exi Min Mat Gar Fac Was Fac Gar Fac Total 5553 | . 640 309 302 2175 169 277 389 523 97 324 134 214 Wait 1311 | . . 32 11 1231 1 2 32 . . 1 . 1 Move 3719 | . 497 219 231 935 156 213 267 483 94 290 129 205 Hop 1 | . . . . . . . . . . . 1 . Pick Up 77 | . 13 14 9 3 . 12 10 8 . 7 . 1 Fast Attach 42 | . 6 1 2 1 1 5 10 5 1 5 . 5 Attach 45 | . 2 8 4 1 . 4 13 4 . 9 . . Detach 6 | . . 1 . . 1 . 1 . . 3 . . Swap 40 | . 8 1 7 1 2 8 7 5 . 1 . . Drop 61 | . 14 2 4 3 . 9 12 11 . 6 . . Fire 239 | . 95 29 34 . 7 24 37 7 2 2 . 2 Melee . | . . . . . . . . . . . . . Ram 1 | . . . . . 1 . . . . . . . Kick 3 | . 3 . . . . . . . . . . . Crush 4 | . 2 2 . . . . . . . . . . Escape Stasis 4 | . . . . . . . . . . . 4 . Rewire . | . . . . . . . . . . . . . Trap . | . . . . . . . . . . . . . Miscellaneous . | . . . . . . . . . . . . . Route ------- -11/Scrapyard -10/Materials -9/Materials -9/Mines (discovered 2 exits: *Mat / *Exi) -9/Exiles (discovered 2 exits: [*Min x2]) -8/Mines -8/Materials (discovered 2 exits: Sto / Gar) -8/Garrison -7/Factory -7/Waste -7/Factory -7/Garrison -7/Factory History --------- Turn | Location | Event 1 | -11/Scrapyard | Discovered new exit (range 0) 1 | -11/Scrapyard | Entered Materials 348 | -10/Materials | Build established: Mutant 612 | -10/Materials | Core integrity fell below 50% 1027 | -10/Materials | Discovered new exit (range 12) 1234 | -10/Materials | Entered another Materials area 1234 | -9/Materials | Evolved 2 slots: Utility x2 1284 | -9/Materials | Identified exit to Mines 1873 | -9/Materials | Lost 3 parts (1n2u) 1913 | -9/Materials | Entered Mines 1913 | -9/Mines | Discovered new exit (range 7) 2008 | -9/Mines | Lost 3 parts (1p1n1w) 2053 | -9/Mines | Deemed a non-threat by the Exiles lab entrance 2053 | -9/Mines | Discovered new exit (range 5) 2181 | -9/Mines | Learned location of 1 exit from Materials 2282 | -9/Mines | Excavation squad dispatched 2282 | -9/Mines | A large section of the Mines collapsed 2290 | -9/Mines | Build established: Scavenger-Mutant 2420 | -9/Mines | Core integrity fell below 50% 2529 | -9/Mines | Entered Exiles 2558 | -9/Exiles | Met 8R-AWN 2577 | -9/Exiles | Met EX-HEX 2673 | -9/Exiles | Met EX-DEC 2747 | -9/Exiles | Visited The Gauntlet 2920 | -9/Exiles | Discovered new exit (range 14) 2975 | -9/Exiles | Met EX-BIN 2991 | -9/Exiles | Aligned with FarCom system 2992 | -9/Exiles | Given EX-Vault access code 4285 | -9/Exiles | Opened EX-Vault 4322 | -9/Exiles | Warned to stay clear of 0b10 Research branches 4518 | -9/Exiles | Found Cloak of Protection 4662 | -9/Exiles | Build established: Hauler-Mutant 4933 | -9/Exiles | Discovered new exit (range 14) 5192 | -9/Exiles | Left Exiles lab with Cloak of Protection 5192 | -9/Exiles | Entered Mines 5509 | -8/Mines | Discovered new exit (range 7) 5533 | -8/Mines | Entered Materials 5533 | -8/Materials | Evolved 2 slots: Propulsion x2 5534 | -8/Materials | Identified exit to Storage 5556 | -8/Materials | Build established: Hauler-Skirmisher 6141 | -8/Materials | Identified exit to Garrison 6141 | -8/Materials | Entered Garrison 6252 | -8/Garrison | Triggered checkpoint 6312 | -8/Garrison | Garrison Relay disabled 6468 | -8/Garrison | Lost 3 parts (3n) 6516 | -8/Garrison | Triggered checkpoint 6520 | -8/Garrison | Triggered checkpoint 6542 | -8/Garrison | Core integrity fell below 50% 6591 | -8/Garrison | Destroyed 9 combat bots 6618 | -8/Garrison | Lost 11 parts (2p4n1u4w) 6720 | -8/Garrison | Discovered new exit (range 13) 6748 | -8/Garrison | Phase Generator disabled 6749 | -8/Garrison | Core integrity fell below 20% 6758 | -8/Garrison | Entered Factory 6758 | -7/Factory | Evolved 2 slots: Power x1, Utility x1 7088 | -7/Factory | Garrison activated, responded to threat 7130 | -7/Factory | Build established: Scavenger-Skirmisher 7244 | -7/Factory | Sucked down chute 7244 | -7/Factory | Entered Waste 7252 | -7/Waste | Spotted C-40 Crusher 7253 | -7/Waste | Spotted C-40 Crusher 7259 | -7/Waste | EMP discharged 7264 | -7/Waste | Crushed by Compactor (1 part destroyed, 2 dropped) 7266 | -7/Waste | Spotted C-40 Crusher 7278 | -7/Waste | Spotted C-40 Crusher 7302 | -7/Waste | Discovered new exit (range 12) 7302 | -7/Waste | Spotted C-40 Crusher 7320 | -7/Waste | Spotted C-40 Crusher 7327 | -7/Waste | Crushed by Compactor (0 parts destroyed, 1 dropped) 7328 | -7/Waste | Crushed by Compactor (1 part destroyed, 1 dropped) 7330 | -7/Waste | Crushed by Compactor (1 part destroyed, 1 dropped) 7333 | -7/Waste | Crushed by Compactor (1 part destroyed) 7342 | -7/Waste | Entered Factory 7364 | -7/Factory | Lost 4 parts (1p1n2u) 7663 | -7/Factory | Build established: Hacker-Mutant 7685 | -7/Factory | Identified exit to Garrison 7685 | -7/Factory | Entered Garrison 7750 | -7/Garrison | Triggered checkpoint 7767 | -7/Garrison | Discovered new exit (range 12) 7772 | -7/Garrison | Entered Factory 7804 | -7/Factory | Core integrity fell below 50% 7824 | -7/Factory | Core integrity fell below 20% 7854 | -7/Factory | Lost 8 parts (1p2n2u3w) 7943 | -7/Factory | Destroyed by Y-54 Guardian with Flak Gun Last Messages --------------- 07820_ S-27 Virus destroyed. 07820_ Chain reaction triggered in Corrupted Lgt. Nuclear Core. 07820_ Adv. EMP Blaster destroyed. 07820_ Destroyed Adv. EMP Blaster. 07820_ Terminal disabled. 07823_ Nuclear Reactor explodes. 07823_ Adv. ECM Suite destroyed. 07827_ Neutrino Reactor explodes. 07832_ Acquired Cesium-ion Thruster. 07843_ System corrupted: Matter fused (-8). 07851_ Acquired Imp. Deuterium Engine. 07860_ Connecting with Fabricator... 07860_ Current location identified: Factory 07866_ 7J#XFEP|WIQ%BAP=XDJ/DA CM7EUV:L%JTYBNA 07884_ Acquired Com. Wheel. 07886_ YZVZYDNU M %QFLZUR4HZ,X8ALR/XYC2FHZ 07921_ Imp. Deuterium Engine destroyed. 07935_ System corrupted: Component data lost. 07940_ Cesium-ion Thruster destroyed. Map ----- +----------------------------------------------------+ | ?? ??""""" #?# #?????????????????????? | | ?? # ""T"" #?# #?????????????????????? | | ??? ##### / ### ###???????????????????? | | ??????????# # ##+########?????????? | | ??????????# # ?????????? | | ??????????# + ????????? | | ??????????# """ """ # ?????????? | | ??????????# """ """ # #######+###?????????? | | ????????????""" """ ## ##???????????????????? | | ???????????? "" "" ## #????????????????????? | | ?????????????"" "" ## #????????????????????? | | ??????????????? ## #????????????????????? | | ???????????????########## #????????????????????? | | ????????????????????????# #????????????????????? | | ????????????????????????# ##############???????? | | ???????????##############k # #???????? | | ?????????? # #???????? | | ?????????? # #???????? | | ?????????? # #???????? | | ?????????? # #???????? | | ?????????? # #???????? | | ?????????? # #???????? | | ????????? Y # #???????? | | ????????? # #???????? | | ????????? # ! #???????? | | ????????? @ + #???????? | | ????? # #???????? | | #####???? ##############???????? | | ????????? # #???????????? | | ????????? # """ #???????????? | | ????????g + R" #???????????? | | ?????????? # """ #???????????? | | ?????????? # #???????????? | | ??????????? ############ ###?#######???????????? | | ??????????? ????????????# #?????????????????????? | | ?????????????????????????# #?????????????????????? | | ?????????????????????????# #?????????????????????? | | ?????????????????????????# #?????????????????????? | | ?????????????????????????# #?????????????????????? | | ????????????????????????? +?????????????????????? | | ????????????????????????? #?????????????????????? | | ?????????????????????w??? ??????????????????????? | | ????????????????????????? ??????????????????????? | | ????????????????????????? ??????????????????????? | | ????????????????????????? ??????????????????????? | | ?????????????????????????????????????????????????? | | ?????????????????????????????????????????????????? | | ?????????????????????????????????????????????????? | | ?????????????????????????????????????????????????? | | ?????????????????????????????????????????????????? | +----------------------------------------------------+ Best States ------------- Heat Dissipation 34 Energy Generation 26 Energy Capacity 340 Matter Stores 314 Matter Capacity 450 Sight Range 20 Terrain Scan Range 16 Terrain Scan Density 85 ECM Strength 2 Cloak Strength 5 Additional Mass Support 9 Evasion (%) 63 Targeting Accuracy 5 Recoil Reduction 4 Offensive Hacking 20 Defensive Hacking 10 Item Schematics ----------------- Adv. Assault Cannon | -7/Factory | Hacked Robot Schematics ------------------ None Fabricated ------------ Nothing Alien Tech Used ----------------- None Achievements -------------- None Challenges ------------ None Game ------ Seed BiometalFusionCorpse Manual? 0 Play Time 01:00:03 Cumulative 96.9 hours Start 2022.09.03 @ 04:23:38 End 2022.09.03 @ 05:21:35 Sessions 1 Manual Loads 0 Difficulty Rogue Special Mode None Game No. 159 Rogue 113 Adventurer 45 Explorer 1 Win Type - Total 0 Types 0/0/0/0/0/0/0/0/0 Lore% 29 Gallery% 50 Achievement% 35 Wizard Run 0 Options --------- ASCII 0 Keyboard 0 Movement Mouse Keybinds 0 Fullscreen 2 Font 18/X11Bold Map View 76x50 Tactical HUD 1 Map Filters NONE Filters LOW_CONTRAST(13,24,33)|BRIGHTNESS(90)|SATURATION(87) Steam 1 RUN: 25dc4fab-59aa-4e4c-88e2-3c6afd80dec6